Workbook

Sheet Sheet1
A1: 附件
A2: 纳雍县2024年面向社会公开招聘工作人员面试成绩及进入体检人员名单
A3: 序号 | B3: 姓名 | C3: 准考证号 | D3: 报考单位 | E3: 岗位代码及名称 | F3: 笔试成绩 | G3: 折算成百分制后成绩 | H3: 面试成绩 | I3: 折算后综合得分 | J3: 岗位内名次 | K3: 是否进入体检 | L3: 备注
A4: 1 | B4: 梅祥义 | C4: 1152243801116 | D4: 纳雍县百兴镇国土资源所 | E4: 01工作人员 | F4: 190.50 | G4: =F4/3 -> 63.50 | H4: 84.71 | I4: =G4*0.6+H4*0.4 -> 71.98 | J4: 1 | K4: 是
A5: 2 | B5: 饶琴琴 | C5: 1152243803105 | D5: 纳雍县百兴镇国土资源所 | E5: 01工作人员 | F5: 158.00 | G5: 52.67 | H5: 43.60 | I5: 49.04 | J5: 2
A6: 3 | B6: 安香 | C6: 1152243803217 | D6: 纳雍县百兴镇人力资源和社会保障服务中心 | E6: 01工作人员 | F6: 180.50 | G6: 60.17 | H6: 82.60 | I6: 69.14 | J6: 1 | K6: 是
A7: 4 | B7: 肖钦耀 | C7: 1152243803925 | D7: 纳雍县百兴镇人力资源和社会保障服务中心 | E7: 01工作人员 | F7: 176.00 | G7: 58.67 | H7: 81.40 | I7: 67.76 | J7: 2
A8: 5 | B8: 王启训 | C8: 1152243800204 | D8: 纳雍县百兴镇人力资源和社会保障服务中心 | E8: 01工作人员 | F8: 175.50 | G8: 58.50 | H8: 68.00 | I8: 62.30 | J8: 3
A9: 6 | B9: 周梅 | C9: 1152243704417 | D9: 纳雍县党员教育服务中心 | E9: 01工作人员 | F9: 202.50 | G9: 67.50 | H9: 73.60 | I9: 69.94 | J9: 1 | K9: 是
A10: 7 | B10: 余洋 | C10: 1152243705209 | D10: 纳雍县党员教育服务中心 | E10: 01工作人员 | F10: 190.00 | G10: 63.33 | H10: 78.60 | I10: 69.44 | J10: 2
A11: 8 | B11: 陈诗寰 | C11: 1152243701116 | D11: 纳雍县党员教育服务中心 | E11: 01工作人员 | F11: 194.00 | G11: 64.67 | H11: 74.60 | I11: 68.64 | J11: 3
A12: 9 | B12: 李玉梅 | C12: 1152243705122 | D12: 纳雍县党员教育服务中心 | E12: 02工作人员 | F12: 201.50 | G12: 67.17 | H12: 79.60 | I12: 72.14 | J12: 1 | K12: 是
A13: 10 | B13: 曾颖 | C13: 1152243701521 | D13: 纳雍县党员教育服务中心 | E13: 02工作人员 | F13: 208.00 | G13: 69.33 | H13: 75.60 | I13: 71.84 | J13: 2
A14: 11 | B14: 吴寻 | C14: 1152243703615 | D14: 纳雍县党员教育服务中心 | E14: 02工作人员 | F14: 191.50 | G14: 63.83 | H14: 缺考 | J14: 3
A15: 12 | B15: 赵贵蜀 | C15: 1152243700809 | D15: 纳雍县党员教育服务中心 | E15: 03工作人员 | F15: 192.50 | G15: 64.17 | H15: 78.00 | I15: =G15*0.6+H15*0.4 -> 69.70 | J15: 1 | K15: 是
A16: 13 | B16: 朱玉环 | C16: 1152243703125 | D16: 纳雍县党员教育服务中心 | E16: 03工作人员 | F16: 189.00 | G16: 63.00 | H16: 77.80 | I16: 68.92 | J16: 2
A17: 14 | B17: 宋红叶 | C17: 1152243702322 | D17: 纳雍县党员教育服务中心 | E17: 03工作人员 | F17: 189.00 | G17: 63.00 | H17: 75.00 | I17: 67.80 | J17: 3
A18: 15 | B18: 葛雨洁 | C18: 1152243702008 | D18: 纳雍县党员教育服务中心 | E18: 04工作人员 | F18: 192.00 | G18: 64.00 | H18: 71.00 | I18: 66.80 | J18: 1 | K18: 是
A19: 16 | B19: 梁思梦 | C19: 1152243702425 | D19: 纳雍县党员教育服务中心 | E19: 04工作人员 | F19: 179.00 | G19: 59.67 | H19: 74.60 | I19: 65.64 | J19: 2
A20: 17 | B20: 杨雅婷 | C20: 1152243703820 | D20: 纳雍县党员教育服务中心 | E20: 04工作人员 | F20: 176.50 | G20: 58.83 | H20: 69.60 | I20: 63.14 | J20: 3
A21: 18 | B21: 向军 | C21: 1152243700512 | D21: 纳雍县党员教育服务中心 | E21: 05工作人员 | F21: 203.50 | G21: 67.83 | H21: 84.80 | I21: 74.62 | J21: 1 | K21: 是
A22: 19 | B22: 王亚丽 | C22: 1152243701613 | D22: 纳雍县党员教育服务中心 | E22: 05工作人员 | F22: 215.00 | G22: 71.67 | H22: 78.20 | I22: 74.28 | J22: 2 | K22: 是
A23: 20 | B23: 赵秋玲 | C23: 1152243703603 | D23: 纳雍县党员教育服务中心 | E23: 05工作人员 | F23: 211.00 | G23: 70.33 | H23: 72.80 | I23: 71.32 | J23: 3
A24: 21 | B24: 何静 | C24: 1152243705418 | D24: 纳雍县党员教育服务中心 | E24: 05工作人员 | F24: 201.00 | G24: 67.00 | H24: 70.40 | I24: 68.36 | J24: 4
A25: 22 | B25: 周海 | C25: 1152243702405 | D25: 纳雍县党员教育服务中心 | E25: 05工作人员 | F25: 201.00 | G25: 67.00 | H25: 67.00 | I25: 67.00 | J25: 5
A26: 23 | B26: 田甜 | C26: 1152243702711 | D26: 纳雍县党员教育服务中心 | E26: 05工作人员 | F26: 203.00 | G26: 67.67 | H26: 63.20 | I26: 65.88 | J26: 6
A27: 24 | B27: 肖松明 | C27: 1152243805024 | D27: 纳雍县董地苗族彝族乡国土资源所 | E27: 01工作人员 | F27: 207.00 | G27: 69.00 | H27: 80.63 | I27: 73.65 | J27: 1 | K27: 是
A28: 25 | B28: 杨滔 | C28: 1152243804806 | D28: 纳雍县董地苗族彝族乡国土资源所 | E28: 01工作人员 | F28: 200.50 | G28: 66.83 | H28: 73.90 | I28: 69.66 | J28: 2
A29: 26 | B29: 龙林 | C29: 1152243801028 | D29: 纳雍县董地苗族彝族乡国土资源所 | E29: 01工作人员 | F29: 199.50 | G29: 66.50 | H29: 74.40 | I29: 69.66 | J29: 3
A30: 27 | B30: 叶裕 | C30: 1152243900924 | D30: 纳雍县董地苗族彝族乡乡村振兴服务中心 | E30: 01工作人员 | F30: 201.50 | G30: 67.17 | H30: 80.20 | I30: 72.38 | J30: 1 | K30: 是
A31: 28 | B31: 宋伟 | C31: 1152243900814 | D31: 纳雍县董地苗族彝族乡乡村振兴服务中心 | E31: 01工作人员 | F31: 196.50 | G31: 65.50 | H31: 79.20 | I31: 70.98 | J31: 2
A32: 29 | B32: 蒙禹东 | C32: 1152243902828 | D32: 纳雍县董地苗族彝族乡乡村振兴服务中心 | E32: 01工作人员 | F32: 200.00 | G32: 66.67 | H32: 77.20 | I32: 70.88 | J32: 3
A33: 30 | B33: 高悦 | C33: 1152243703726 | D33: 纳雍县发展和改革局国防动员服务中心 | E33: 01工作人员 | F33: 197.00 | G33: 65.67 | H33: 73.60 | I33: 68.84 | J33: 1 | K33: 是
A34: 31 | B34: 韩泰男 | C34: 1152243702626 | D34: 纳雍县发展和改革局国防动员服务中心 | E34: 01工作人员 | F34: 188.50 | G34: 62.83 | H34: 76.20 | I34: 68.18 | J34: 2
A35: 32 | B35: 陈吟西 | C35: 1152243701311 | D35: 纳雍县发展和改革局国防动员服务中心 | E35: 01工作人员 | F35: 189.00 | G35: 63.00 | H35: 70.60 | I35: 66.04 | J35: 3
A36: 33 | B36: 李超 | C36: 1152243804830 | D36: 纳雍县姑开苗族彝族乡国土资源所 | E36: 01工作人员 | F36: 172.50 | G36: 57.50 | H36: 70.63 | I36: 62.75 | J36: 1 | K36: 是
A37: 34 | B37: 代璐 | C37: 1152243800728 | D37: 纳雍县姑开苗族彝族乡乡村振兴服务中心 | E37: 01工作人员 | F37: 183.00 | G37: 61.00 | H37: 69.40 | I37: 64.36 | J37: 1 | K37: 是
A38: 35 | B38: 张娟 | C38: 1152243800817 | D38: 纳雍县姑开苗族彝族乡乡村振兴服务中心 | E38: 01工作人员 | F38: 175.50 | G38: 58.50 | H38: 70.20 | I38: 63.18 | J38: 2
A39: 36 | B39: 周军兴 | C39: 1152243804303 | D39: 纳雍县姑开苗族彝族乡乡村振兴服务中心 | E39: 01工作人员 | F39: 177.50 | G39: 59.17 | H39: 69.00 | I39: 63.10 | J39: 3
A40: 37 | B40: 邹良海 | C40: 1152243901227 | D40: 纳雍县锅圈岩苗族彝族乡乡村振兴服务中心 | E40: 01工作人员 | F40: 196.00 | G40: 65.33 | H40: 79.60 | I40: 71.04 | J40: 1 | K40: 是
A41: 38 | B41: 饶鑫 | C41: 1152243902126 | D41: 纳雍县锅圈岩苗族彝族乡乡村振兴服务中心 | E41: 01工作人员 | F41: 190.00 | G41: 63.33 | H41: 80.80 | I41: 70.32 | J41: 2 | K41: 是
A42: 39 | B42: 安春燕 | C42: 1152243900522 | D42: 纳雍县锅圈岩苗族彝族乡乡村振兴服务中心 | E42: 01工作人员 | F42: 191.00 | G42: 63.67 | H42: 79.00 | I42: 69.80 | J42: 3
A43: 40 | B43: 李晓远 | C43: 1152243901012 | D43: 纳雍县锅圈岩苗族彝族乡乡村振兴服务中心 | E43: 01工作人员 | F43: 176.50 | G43: 58.83 | H43: 83.20 | I43: 68.58 | J43: 4
A44: 41 | B44: 翟顺 | C44: 1152243901402 | D44: 纳雍县锅圈岩苗族彝族乡乡村振兴服务中心 | E44: 01工作人员 | F44: 187.00 | G44: 62.33 | H44: 76.80 | I44: 68.12 | J44: 5
A45: 42 | B45: 安儒君 | C45: 1152243902316 | D45: 纳雍县锅圈岩苗族彝族乡乡村振兴服务中心 | E45: 01工作人员 | F45: 177.00 | G45: 59.00 | H45: 75.40 | I45: 65.56 | J45: 6
A46: 43 | B46: 雷延伸 | C46: 1152243802323 | D46: 纳雍县国有资产管理服务中心 | E46: 01工作人员 | F46: 202.50 | G46: 67.50 | H46: 87.80 | I46: 75.62 | J46: 1 | K46: 是
A47: 44 | B47: 张祥兰 | C47: 1152243805519 | D47: 纳雍县国有资产管理服务中心 | E47: 01工作人员 | F47: 202.00 | G47: 67.33 | H47: 82.60 | I47: 73.44 | J47: 2
A48: 45 | B48: 唐江兰 | C48: 1152243802910 | D48: 纳雍县国有资产管理服务中心 | E48: 01工作人员 | F48: 194.00 | G48: 64.67 | H48: 79.60 | I48: 70.64 | J48: 3
A49: 46 | B49: 陈浪 | C49: 1152243803119 | D49: 纳雍县建筑施工质量安全服务中心 | E49: 01工作人员 | F49: 195.50 | G49: 65.17 | H49: 88.20 | I49: 74.38 | J49: 1 | K49: 是
A50: 47 | B50: 蒙维印 | C50: 1152243801008 | D50: 纳雍县建筑施工质量安全服务中心 | E50: 01工作人员 | F50: 185.50 | G50: 61.83 | H50: 81.20 | I50: 69.58 | J50: 2
A51: 48 | B51: 郭宏杰 | C51: 1152243801322 | D51: 纳雍县建筑施工质量安全服务中心 | E51: 01工作人员 | F51: 192.00 | G51: 64.00 | H51: 缺考 | J51: 3
A52: 49 | B52: 孙志慧 | C52: 1152243805213 | D52: 纳雍县利园街道国土资源所 | E52: 01工作人员 | F52: 212.00 | G52: 70.67 | H52: 78.20 | I52: =G52*0.6+H52*0.4 -> 73.68 | J52: 1 | K52: 是
A53: 50 | B53: 陈丽红 | C53: 1152243804513 | D53: 纳雍县利园街道国土资源所 | E53: 01工作人员 | F53: 193.50 | G53: 64.50 | H53: 85.50 | I53: 72.90 | J53: 2
A54: 51 | B54: 王飞宇 | C54: 1152243804906 | D54: 纳雍县利园街道国土资源所 | E54: 01工作人员 | F54: 197.00 | G54: 65.67 | H54: 73.65 | I54: 68.86 | J54: 3
A55: 52 | B55: 张济炜 | C55: 1152243703106 | D55: 纳雍县农村公路养护中心 | E55: 01工作人员 | F55: 220.00 | G55: 73.33 | H55: 79.80 | I55: 75.92 | J55: 1 | K55: 是
A56: 53 | B56: 吴晓 | C56: 1152243702118 | D56: 纳雍县农村公路养护中心 | E56: 01工作人员 | F56: 211.00 | G56: 70.33 | H56: 73.40 | I56: 71.56 | J56: 2
A57: 54 | B57: 陈敏 | C57: 1152243701024 | D57: 纳雍县农村公路养护中心 | E57: 01工作人员 | F57: 210.00 | G57: 70.00 | H57: 69.40 | I57: 69.76 | J57: 3
A58: 55 | B58: 杨秋宇 | C58: 1152243702311 | D58: 纳雍县人民法院诉讼服务中心 | E58: 01工作人员 | F58: 207.00 | G58: 69.00 | H58: 79.00 | I58: 73.00 | J58: 1 | K58: 是
A59: 56 | B59: 刘娅师 | C59: 1152243702102 | D59: 纳雍县人民法院诉讼服务中心 | E59: 01工作人员 | F59: 197.00 | G59: 65.67 | H59: 74.60 | I59: 69.24 | J59: 2
A60: 57 | B60: 颜云 | C60: 1152243704721 | D60: 纳雍县人民法院诉讼服务中心 | E60: 01工作人员 | F60: 203.50 | G60: 67.83 | H60: 70.00 | I60: 68.70 | J60: 3
A61: 58 | B61: 彭超 | C61: 1152243802004 | D61: 纳雍县人民政府居仁街道社会治安综合治理中心 | E61: 01工作人员 | F61: 194.00 | G61: 64.67 | H61: 78.80 | I61: 70.32 | J61: 1 | K61: 是
A62: 59 | B62: 尚源珈 | C62: 1152243802506 | D62: 纳雍县人民政府居仁街道社会治安综合治理中心 | E62: 01工作人员 | F62: 192.00 | G62: 64.00 | H62: 79.60 | I62: 70.24 | J62: 2
A63: 60 | B63: 吴宇星 | C63: 1152243804126 | D63: 纳雍县人民政府居仁街道社会治安综合治理中心 | E63: 01工作人员 | F63: 192.00 | G63: 64.00 | H63: 79.40 | I63: 70.16 | J63: 3
A64: 61 | B64: 余莎 | C64: 1152243800721 | D64: 纳雍县人民政府文昌街道社会治安综合治理中心 | E64: 01工作人员 | F64: 207.00 | G64: 69.00 | H64: 84.20 | I64: 75.08 | J64: 1 | K64: 是
A65: 62 | B65: 舒春宁 | C65: 1152243802229 | D65: 纳雍县人民政府文昌街道社会治安综合治理中心 | E65: 01工作人员 | F65: 198.50 | G65: 66.17 | H65: 73.20 | I65: 68.98 | J65: 2
A66: 63 | B66: 耿合伟 | C66: 1152243801715 | D66: 纳雍县人民政府文昌街道社会治安综合治理中心 | E66: 01工作人员 | F66: 192.00 | G66: 64.00 | H66: 72.40 | I66: 67.36 | J66: 3
A67: 64 | B67: 刘瑜祥 | C67: 1152243805015 | D67: 纳雍县人民政府雍熙街道科技宣教文化信息服务中心 | E67: 01工作人员 | F67: 200.00 | G67: 66.67 | H67: 86.80 | I67: 74.72 | J67: 1 | K67: 是
A68: 65 | B68: 周霓洁 | C68: 1152243800511 | D68: 纳雍县人民政府雍熙街道科技宣教文化信息服务中心 | E68: 01工作人员 | F68: 197.00 | G68: =F68/3 -> 65.67 | H68: 84.00 | I68: 73.00 | J68: 2
A69: 66 | B69: 林浩然 | C69: 1152243804904 | D69: 纳雍县人民政府雍熙街道科技宣教文化信息服务中心 | E69: 01工作人员 | F69: 191.00 | G69: 63.67 | H69: 83.80 | I69: 71.72 | J69: 3
A70: 67 | B70: 胡璐 | C70: 1152243702213 | D70: 纳雍县融媒体中心 | E70: 01记者 | F70: 195.00 | G70: 65.00 | H70: 73.40 | I70: 68.36 | J70: 1 | K70: 是
A71: 68 | B71: 韦双曼 | C71: 1152243701919 | D71: 纳雍县融媒体中心 | E71: 01记者 | F71: 189.00 | G71: 63.00 | H71: 76.40 | I71: 68.36 | J71: 2
A72: 69 | B72: 王进 | C72: 1152243703907 | D72: 纳雍县融媒体中心 | E72: 01记者 | F72: 189.00 | G72: 63.00 | H72: 73.00 | I72: 67.00 | J72: 3
A73: 70 | B73: 吴雨浓 | C73: 1152243704001 | D73: 纳雍县融媒体中心 | E73: 01记者 | F73: 189.50 | G73: 63.17 | H73: 66.20 | I73: 64.38 | J73: 4
A74: 71 | B74: 陈小青 | C74: 1152243803101 | D74: 纳雍县沙包镇国土资源所 | E74: 01工作人员 | F74: 219.00 | G74: 73.00 | H74: 83.75 | I74: 77.30 | J74: 1 | K74: 是
A75: 72 | B75: 李世林 | C75: 1152243801406 | D75: 纳雍县沙包镇国土资源所 | E75: 01工作人员 | F75: 210.00 | G75: 70.00 | H75: 81.00 | I75: 74.40 | J75: 2
A76: 73 | B76: 蒙韵 | C76: 1152243802510 | D76: 纳雍县沙包镇国土资源所 | E76: 01工作人员 | F76: 211.50 | G76: 70.50 | H76: 76.79 | I76: 73.02 | J76: 3
A77: 74 | B77: 赵洪松 | C77: 1152243800825 | D77: 纳雍县勺窝镇国土资源所 | E77: 01工作人员 | F77: 202.50 | G77: 67.50 | H77: 89.20 | I77: 76.18 | J77: 1 | K77: 是
A78: 75 | B78: 何亚芳 | C78: 1152243804802 | D78: 纳雍县勺窝镇国土资源所 | E78: 01工作人员 | F78: 198.00 | G78: 66.00 | H78: 82.00 | I78: 72.40 | J78: 2
A79: 76 | B79: 杨明 | C79: 1152243803021 | D79: 纳雍县勺窝镇国土资源所 | E79: 01工作人员 | F79: 194.50 | G79: 64.83 | H79: 80.00 | I79: 70.90 | J79: 3
A80: 77 | B80: 袁杰 | C80: 1152243804116 | D80: 纳雍县社会工作服务中心 | E80: 01工作人员 | F80: 203.00 | G80: 67.67 | H80: 80.80 | I80: 72.92 | J80: 1 | K80: 是
A81: 78 | B81: 李铖 | C81: 1152243803513 | D81: 纳雍县社会工作服务中心 | E81: 01工作人员 | F81: 199.50 | G81: 66.50 | H81: 72.80 | I81: 69.02 | J81: 2
A82: 79 | B82: 蔡诗城 | C82: 1152243801609 | D82: 纳雍县社会工作服务中心 | E82: 01工作人员 | F82: 205.50 | G82: 68.50 | H82: 缺考 | J82: 3
A83: 80 | B83: 管庆杨 | C83: 1152243801517 | D83: 纳雍县市政公用事业服务中心 | E83: 01工作人员 | F83: 190.00 | G83: 63.33 | H83: 86.40 | I83: =G83*0.6+H83*0.4 -> 72.56 | J83: 1 | K83: 是
A84: 81 | B84: 岳虎 | C84: 1152243803321 | D84: 纳雍县市政公用事业服务中心 | E84: 01工作人员 | F84: 185.50 | G84: 61.83 | H84: 83.20 | I84: =G84*0.6+H84*0.4 -> 70.38 | J84: 2
A85: 82 | B85: 胡宁梓 | C85: 1152243800705 | D85: 纳雍县市政公用事业服务中心 | E85: 01工作人员 | F85: 223.00 | G85: 74.33 | H85: 缺考 | J85: 3
A86: 83 | B86: 李康 | C86: 1152243804215 | D86: 纳雍县曙光镇国土资源所 | E86: 01工作人员 | F86: 189.00 | G86: 63.00 | H86: 86.96 | I86: =G86*0.6+H86*0.4 -> 72.58 | J86: 1 | K86: 是
A87: 84 | B87: 胡兴明 | C87: 1152243801126 | D87: 纳雍县曙光镇国土资源所 | E87: 01工作人员 | F87: 199.00 | G87: 66.33 | H87: 78.20 | I87: 71.08 | J87: 2 | K87: 是
A88: 85 | B88: 罗建伟 | C88: 1152243802126 | D88: 纳雍县曙光镇国土资源所 | E88: 01工作人员 | F88: 176.50 | G88: 58.83 | H88: 80.14 | I88: 67.36 | J88: 3
A89: 86 | B89: 王梦菊 | C89: 1152243804028 | D89: 纳雍县曙光镇国土资源所 | E89: 01工作人员 | F89: 177.50 | G89: 59.17 | H89: 78.94 | I89: 67.08 | J89: 4
A90: 87 | B90: 夏东莲 | C90: 1152243801505 | D90: 纳雍县曙光镇国土资源所 | E90: 01工作人员 | F90: 170.50 | G90: 56.83 | H90: 78.25 | I90: 65.40 | J90: 5
A91: 88 | B91: 张晶 | C91: 1152243804424 | D91: 纳雍县曙光镇国土资源所 | E91: 01工作人员 | F91: 185.50 | G91: 61.83 | H91: 57.16 | I91: 59.96 | J91: 6
A92: 89 | B92: 米娟 | C92: 1152243800108 | D92: 纳雍县水东镇国土资源所 | E92: 01工作人员 | F92: 204.50 | G92: 68.17 | H92: 80.45 | I92: 73.08 | J92: 1 | K92: 是
A93: 90 | B93: 陈英子 | C93: 1152243801516 | D93: 纳雍县水东镇国土资源所 | E93: 01工作人员 | F93: 195.50 | G93: 65.17 | H93: 79.55 | I93: 70.92 | J93: 2
A94: 91 | B94: 刘文琪 | C94: 1152243804623 | D94: 纳雍县水东镇国土资源所 | E94: 01工作人员 | F94: 189.00 | G94: 63.00 | H94: 82.41 | I94: 70.76 | J94: 3
A95: 92 | B95: 王婷 | C95: 1152243803505 | D95: 纳雍县维新镇人力资源和社会保障服务中心 | E95: 01工作人员 | F95: 216.00 | G95: 72.00 | H95: 76.40 | I95: 73.76 | J95: 1 | K95: 是
A96: 93 | B96: 曾飞 | C96: 1152243901522 | D96: 纳雍县维新镇人力资源和社会保障服务中心 | E96: 01工作人员 | F96: 191.00 | G96: 63.67 | H96: 71.80 | I96: 66.92 | J96: 2
A97: 94 | B97: 王富生 | C97: 1152243900307 | D97: 纳雍县维新镇人力资源和社会保障服务中心 | E97: 01工作人员 | F97: 185.50 | G97: 61.83 | H97: 62.00 | I97: 61.90 | J97: 3
A98: 95 | B98: 胡九艳 | C98: 1152243702707 | D98: 纳雍县文昌街道国土资源所 | E98: 01工作人员 | F98: 204.00 | G98: 68.00 | H98: 85.47 | I98: 74.99 | J98: 1 | K98: 是
A99: 96 | B99: 何汉泽 | C99: 1152243700122 | D99: 纳雍县文昌街道国土资源所 | E99: 01工作人员 | F99: 188.00 | G99: 62.67 | H99: 78.40 | I99: 68.96 | J99: 2
A100: 97 | B100: 张梦云 | C100: 1152243701216 | D100: 纳雍县文昌街道国土资源所 | E100: 01工作人员 | F100: 188.00 | G100: 62.67 | H100: 75.57 | I100: 67.83 | J100: 3
A101: 98 | B101: 张羽 | C101: 1152243804225 | D101: 纳雍县文化产业发展服务中心 | E101: 01工作人员 | F101: 195.00 | G101: 65.00 | H101: 82.60 | I101: 72.04 | J101: 1 | K101: 是
A102: 99 | B102: 王玉姣 | C102: 1152243803020 | D102: 纳雍县文化产业发展服务中心 | E102: 01工作人员 | F102: 193.00 | G102: 64.33 | H102: 62.60 | I102: 63.64 | J102: 2
A103: 100 | B103: 王龄梓 | C103: 1152243803708 | D103: 纳雍县文化产业发展服务中心 | E103: 01工作人员 | F103: 200.50 | G103: 66.83 | H103: 缺考 | J103: 3
A104: 101 | B104: 唐雪薇 | C104: 1152243801603 | D104: 纳雍县乡镇统计服务中心 | E104: 01工作人员 | F104: 204.50 | G104: 68.17 | H104: 91.00 | I104: =G104*0.6+H104*0.4 -> 77.30 | J104: 1 | K104: 是
A105: 102 | B105: 马倩 | C105: 1152243803816 | D105: 纳雍县乡镇统计服务中心 | E105: 01工作人员 | F105: 200.50 | G105: 66.83 | H105: 88.40 | I105: 75.46 | J105: 2
A106: 103 | B106: 周理会 | C106: 1152243800917 | D106: 纳雍县乡镇统计服务中心 | E106: 01工作人员 | F106: 199.00 | G106: 66.33 | H106: 83.20 | I106: 73.08 | J106: 3
A107: 104 | B107: 陈明秀 | C107: 1152243802403 | D107: 纳雍县新房彝族苗族乡乡村振兴服务中心 | E107: 01工作人员 | F107: 167.50 | G107: 55.83 | H107: 73.00 | I107: 62.70 | J107: 1 | K107: 是
A108: 105 | B108: 李芳 | C108: 1152243802818 | D108: 纳雍县新房彝族苗族乡乡村振兴服务中心 | E108: 01工作人员 | F108: 154.00 | G108: 51.33 | H108: 73.80 | I108: 60.32 | J108: 2
A109: 106 | B109: 熊婷 | C109: 1152243800206 | D109: 纳雍县新房彝族苗族乡乡村振兴服务中心 | E109: 01工作人员 | F109: 154.50 | G109: 51.50 | H109: 59.40 | I109: 54.66 | J109: 3
A110: 107 | B110: 王柽 | C110: 1152243802718 | D110: 纳雍县宣慰街道国土资源所 | E110: 01工作人员 | F110: 191.50 | G110: 63.83 | H110: 79.42 | I110: 70.07 | J110: 1 | K110: 是
A111: 108 | B111: 李弦林 | C111: 1152243800914 | D111: 纳雍县宣慰街道国土资源所 | E111: 01工作人员 | F111: 183.00 | G111: 61.00 | H111: 78.70 | I111: 68.08 | J111: 2
A112: 109 | B112: 宋刘静 | C112: 1152243805419 | D112: 纳雍县宣慰街道国土资源所 | E112: 01工作人员 | F112: 185.50 | G112: 61.83 | H112: 76.50 | I112: 67.70 | J112: 3
A113: 110 | B113: 吕进涛 | C113: 1152243800819 | D113: 纳雍县羊场苗族彝族乡科技教育文化服务中心 | E113: 01工作人员 | F113: 207.50 | G113: 69.17 | H113: 78.60 | I113: 72.94 | J113: 1 | K113: 是
A114: 111 | B114: 卢小明 | C114: 1152243801026 | D114: 纳雍县羊场苗族彝族乡科技教育文化服务中心 | E114: 01工作人员 | F114: 183.50 | G114: 61.17 | H114: 78.60 | I114: 68.14 | J114: 2
A115: 112 | B115: 张艳阳 | C115: 1152243803605 | D115: 纳雍县羊场苗族彝族乡科技教育文化服务中心 | E115: 01工作人员 | F115: 182.00 | G115: 60.67 | H115: 75.80 | I115: 66.72 | J115: 3
A116: 113 | B116: 赵伟雄 | C116: 1152243804713 | D116: 纳雍县羊场苗族彝族乡乡村振兴服务中心 | E116: 01工作人员 | F116: 187.50 | G116: 62.50 | H116: 76.60 | I116: 68.14 | J116: 1 | K116: 是
A117: 114 | B117: 朱孟熹 | C117: 1152243804730 | D117: 纳雍县羊场苗族彝族乡乡村振兴服务中心 | E117: 01工作人员 | F117: 179.00 | G117: 59.67 | H117: 70.80 | I117: 64.12 | J117: 2
A118: 115 | B118: 刘宇 | C118: 1152243803501 | D118: 纳雍县羊场苗族彝族乡乡村振兴服务中心 | E118: 01工作人员 | F118: 169.50 | G118: 56.50 | H118: 68.20 | I118: 61.18 | J118: 3
A119: 116 | B119: 朱昀湘 | C119: 1152243804328 | D119: 纳雍县阳长镇国土资源所 | E119: 01工作人员 | F119: 189.00 | G119: 63.00 | H119: 74.84 | I119: 67.74 | J119: 1 | K119: 是
A120: 117 | B120: 吴晓 | C120: 1152243803126 | D120: 纳雍县阳长镇国土资源所 | E120: 01工作人员 | F120: 167.50 | G120: 55.83 | H120: 80.58 | I120: 65.73 | J120: 2 | K120: 是
A121: 118 | B121: 宋俊阳 | C121: 1152243801302 | D121: 纳雍县阳长镇国土资源所 | E121: 01工作人员 | F121: 162.00 | G121: 54.00 | H121: 78.99 | I121: 64.00 | J121: 3
A122: 119 | B122: 马祥串 | C122: 1152243804024 | D122: 纳雍县阳长镇国土资源所 | E122: 01工作人员 | F122: 165.50 | G122: 55.17 | H122: 76.94 | I122: 63.88 | J122: 4
A123: 120 | B123: 陈映竹 | C123: 1152243803024 | D123: 纳雍县阳长镇国土资源所 | E123: 01工作人员 | F123: 157.50 | G123: 52.50 | H123: 53.75 | I123: 53.00 | J123: 5
A124: 121 | B124: 李佳河 | C124: 1152243803028 | D124: 纳雍县阳长镇国土资源所 | E124: 01工作人员 | F124: 150.00 | G124: 50.00 | H124: 缺考 | J124: 6
A125: 122 | B125: 杨红霞 | C125: 1152243702802 | D125: 纳雍县医疗保障异地结算中心 | E125: 01工作人员 | F125: 207.50 | G125: 69.17 | H125: 78.00 | I125: =G125*0.6+H125*0.4 -> 72.70 | J125: 1 | K125: 是
A126: 123 | B126: 蒙丽佳 | C126: 1152243702223 | D126: 纳雍县医疗保障异地结算中心 | E126: 01工作人员 | F126: 199.50 | G126: 66.50 | H126: 76.60 | I126: 70.54 | J126: 2
A127: 124 | B127: 陈锡坪 | C127: 1152243700612 | D127: 纳雍县医疗保障异地结算中心 | E127: 01工作人员 | F127: 187.50 | G127: 62.50 | H127: 75.20 | I127: 67.58 | J127: 3
A128: 125 | B128: 雷晓妍 | C128: 1152243701917 | D128: 纳雍县应急管理服务中心 | E128: 01工作人员 | F128: 186.00 | G128: 62.00 | H128: 76.20 | I128: 67.68 | J128: 1 | K128: 是
A129: 126 | B129: 韩传 | C129: 1152243702212 | D129: 纳雍县应急管理服务中心 | E129: 01工作人员 | F129: 188.00 | G129: 62.67 | H129: 63.00 | I129: 62.80 | J129: 2
A130: 127 | B130: 张亚凤 | C130: 1152243705501 | D130: 纳雍县应急管理服务中心 | E130: 01工作人员 | F130: 168.50 | G130: 56.17 | H130: 61.80 | I130: 58.42 | J130: 3
A131: 128 | B131: 何平 | C131: 1152243803104 | D131: 纳雍县张家湾镇乡村振兴服务中心 | E131: 01工作人员 | F131: 177.00 | G131: 59.00 | H131: 82.80 | I131: 68.52 | J131: 1 | K131: 是
A132: 129 | B132: 张熙娅 | C132: 1152243803606 | D132: 纳雍县张家湾镇乡村振兴服务中心 | E132: 01工作人员 | F132: 177.00 | G132: =F132/3 -> 59.00 | H132: 77.00 | I132: 66.20 | J132: 2
A133: 130 | B133: 龙尚群 | C133: 1152243801514 | D133: 纳雍县张家湾镇乡村振兴服务中心 | E133: 01工作人员 | F133: 167.00 | G133: 55.67 | H133: 58.20 | I133: 56.68 | J133: 3
A134: 131 | B134: 杨扬 | C134: 1152243801024 | D134: 纳雍县猪场苗族彝族乡国土资源所 | E134: 01工作人员 | F134: 182.50 | G134: 60.83 | H134: 88.40 | I134: 71.86 | J134: 1 | K134: 是
A135: 132 | B135: 陈雄杰 | C135: 1152243801323 | D135: 纳雍县猪场苗族彝族乡国土资源所 | E135: 01工作人员 | F135: 180.00 | G135: 60.00 | H135: 89.20 | I135: 71.68 | J135: 2 | K135: 是
A136: 133 | B136: 陈永明 | C136: 1152243803225 | D136: 纳雍县猪场苗族彝族乡国土资源所 | E136: 01工作人员 | F136: 169.00 | G136: 56.33 | H136: 79.60 | I136: 65.64 | J136: 3
A137: 134 | B137: 张雅涵 | C137: 1152243800903 | D137: 纳雍县猪场苗族彝族乡国土资源所 | E137: 01工作人员 | F137: 176.50 | G137: 58.83 | H137: 69.20 | I137: 62.98 | J137: 4
A138: 135 | B138: 杨名杰 | C138: 1152243804930 | D138: 纳雍县猪场苗族彝族乡国土资源所 | E138: 01工作人员 | F138: 161.50 | G138: 53.83 | H138: 缺考 | J138: 5
A139: 136 | B139: 严圆 | C139: 1152243804302 | D139: 纳雍县猪场苗族彝族乡国土资源所 | E139: 01工作人员 | F139: 152.00 | G139: 50.67 | H139: 缺考 | J139: 6
A140: 137 | B140: 彭海鹏 | C140: 1152243803717 | D140: 纳雍县鬃岭镇国土资源所 | E140: 01工作人员 | F140: 198.50 | G140: 66.17 | H140: 78.36 | I140: =G140*0.6+H140*0.4 -> 71.04 | J140: 1 | K140: 是
A141: 138 | B141: 陈军虎 | C141: 1152243801503 | D141: 纳雍县鬃岭镇国土资源所 | E141: 01工作人员 | F141: 199.50 | G141: 66.50 | H141: 77.65 | I141: 70.96 | J141: 2
A142: 139 | B142: 赵招立 | C142: 1152243805503 | D142: 纳雍县鬃岭镇国土资源所 | E142: 01工作人员 | F142: 168.50 | G142: 56.17 | H142: 63.78 | I142: 59.21 | J142: 3
A143: 140 | B143: 金昊 | C143: 1152243801329 | D143: 纳雍县左鸠戛彝族苗族乡国土资源所 | E143: 01工作人员 | F143: 212.00 | G143: 70.67 | H143: 92.40 | I143: 79.36 | J143: 1 | K143: 是
A144: 141 | B144: 余涛 | C144: 1152243801524 | D144: 纳雍县左鸠戛彝族苗族乡国土资源所 | E144: 01工作人员 | F144: 194.00 | G144: 64.67 | H144: 82.20 | I144: 71.68 | J144: 2
A145: 142 | B145: 陈唐顺 | C145: 1152243804823 | D145: 纳雍县左鸠戛彝族苗族乡国土资源所 | E145: 01工作人员 | F145: 193.00 | G145: 64.33 | H145: 80.20 | I145: 70.68 | J145: 3
A146: 143 | B146: 杨乾 | C146: 1152243902906 | D146: 纳雍县左鸠戛彝族苗族乡乡村振兴服务中心 | E146: 01工作人员 | F146: 174.50 | G146: 58.17 | H146: 81.20 | I146: 67.38 | J146: 1 | K146: 是
A147: 144 | B147: 吴小维 | C147: 1152243901628 | D147: 纳雍县左鸠戛彝族苗族乡乡村振兴服务中心 | E147: 01工作人员 | F147: 183.00 | G147: 61.00 | H147: 71.20 | I147: 65.08 | J147: 2
A148: 145 | B148: 高止 | C148: 1152243900403 | D148: 纳雍县左鸠戛彝族苗族乡乡村振兴服务中心 | E148: 01工作人员 | F148: 187.50 | G148: 62.50 | H148: 67.60 | I148: 64.54 | J148: 3
